bitfinex/quotes_ETHUSD_20260209
["timestamp","ask_amount","ask_price","bid_price","bid_amount"]
[1770640312289,1.22880314,2034.5,2033.9,0.0745222]
[1770640312486,4.91509552,2034.7,2033.9,0.0745222]
[1770640312808,4.92924028,2034.7,2033.9,0.0745222]
[1770640313299,4.91509552,2034.7,2033.9,0.0745222]
[1770640314980,0.99708364,2034.6,2033.9,0.001]
[1770640315179,1.0112284,2034.6,2034.0,0.001]
[1770640315585,0.002,2034.5,2034.0,0.001]
[1770640316183,0.99908364,2034.5,2034.0,0.001]
[1770640316585,0.99708364,2034.3,2034.0,0.001]
[1770640316790,0.99708364,2034.3,2033.8,0.001]
[1770640317185,0.99708364,2034.3,2033.3,2.188]
[1770640317807,0.99708364,2034.3,2033.2,1.00321132]
[1770640318013,0.99708364,2034.3,2033.3,2.3121]
[1770640319108,1.22898436,2034.2,2033.3,2.3856222]
[1770640319306,2.226068,2034.2,2033.3,0.0735222]
[1770640319613,0.99708364,2034.1,2033.3,0.0735222]
[1770640319986,1.22898436,2034.2,2033.4,1.00321132]
[1770640320196,1.22898436,2034.2,2033.6,0.0735222]
[1770640321016,4.91593746,2034.4,2033.6,0.0735222]
[1770640321200,0.002,2034.5,2033.8,1.00321132]
[1770640321715,0.47559366,2034.5,2033.5,1.00321132]
[1770640321895,0.49143031,2034.4,2033.5,1.00321132]
[1770640322095,0.002,2034.5,2033.6,1.07673352]
[1770640322311,0.47728555,2034.4,2033.6,0.0735222]
[1770640322538,0.47728555,2034.4,2033.6,1.07673352]
[1770640323704,1.22886354,2034.4,2033.6,1.07673352]
[1770640324799,1.22886354,2034.4,2033.8,1.00321132]
[1770640325712,1.22898436,2034.2,2033.6,0.0735222]
[1770640326424,1.22898436,2034.2,2033.6,1.07673352]
[1770640327811,4.91576252,2034.4,2033.6,1.07673352]
[1770640328319,4.91576252,2034.4,2033.8,0.001]
[1770640333132,0.515196,2034.3,2033.8,0.001]
[1770640333307,0.99708364,2034.1,2033.0,3.434]
[1770640333511,0.99708364,2034.0,2033.0,3.434]
[1770640333699,0.99708364,2034.0,2032.9,0.001]
[1770640333908,0.99708364,2033.7,2032.8,0.001]
[1770640334108,9.5014418,2033.8,2032.7,0.001]
[1770640334329,0.52838705,2033.7,2032.7,0.001]
[1770640335226,0.53919147,2033.5,2032.7,0.001]
[1770640335429,0.54986715,2033.4,2032.7,0.001]
[1770640335631,1.22934697,2033.6,2032.7,1.04275974]
[1770640338132,1.22934697,2033.6,2032.9,1.16027568]
[1770640338532,1.22934697,2033.6,2033.1,1.08675348]
[1770640339429,4.91670392,2033.9,2033.1,1.08675348]
[1770640339642,4.93084868,2033.9,2033.1,1.08675348]
[1770640342216,4.66416564,2034.0,2033.3,1.08675348]
[1770640342551,4.66416564,2034.0,2033.4,1.10090812]
[1770640342754,4.91670392,2033.9,2033.4,1.10090812]
[1770640342927,4.91670392,2033.9,2033.4,1.08675348]
[1770640343116,1.22916564,2033.9,2033.5,1.16027568]
[1770640343928,0.002,2034.1,2033.5,1.16027568]
[1770640344539,0.002,2034.1,2033.5,1.17442823]
[1770640345544,0.002,2034.1,2033.5,1.16027568]
[1770640350243,0.002,2034.1,2033.9,1.08675348]
[1770640351630,0.002,2034.1,2033.8,0.01416985]
[1770640351840,0.002,2034.1,2033.6,0.01416985]
[1770640352045,0.002,2034.1,2033.6,1.10092333]
[1770640353341,0.002,2034.1,2033.8,1.16027568]
[1770640353546,0.002,2034.1,2033.8,1.17444413]
[1770640353748,0.002,2034.1,2033.9,1.08675348]
[1770640354659,0.002,2034.1,2033.7,1.10092193]
[1770640356276,0.002,2034.1,2033.9,1.08675348]
[1770640356484,0.002,2034.3,2034.0,1.08675348]
[1770640356652,1.2287492,2034.6,2034.0,1.08675348]
[1770640357188,1.2287492,2034.6,2033.8,0.0735222]
[1770640357189,1.2287492,2034.6,2034.1,1.10094836]
[1770640357360,1.2287492,2034.6,2034.1,1.08675348]
[1770640357668,0.002,2034.7,2034.1,1.08675348]
[1770640357850,0.96493946,2034.7,2033.8,0.08771708]
[1770640358062,0.96493946,2034.7,2033.8,0.01419488]
[1770640358257,0.96493946,2034.7,2033.7,0.01422514]
[1770640358450,0.96493946,2034.7,2033.7,1.10097862]
[1770640359281,0.96649675,2034.4,2033.3,1.08775348]
[1770640359480,0.96649675,2034.2,2033.3,1.08775348]
[1770640359709,0.96649675,2034.2,2033.0,0.001]
[1770640359710,0.96649675,2034.0,2033.0,0.001]
[1770640360003,0.97039252,2033.6,2032.9,0.001]
[1770640360143,0.97039252,2033.6,2032.3,3.435]
[1770640361591,1.01992821,2033.4,2032.3,3.435]
[1770640361894,2.24933563,2033.5,2032.4,1.16027568]
[1770640364580,1.01992821,2033.4,2032.4,1.16027568]
[1770640365783,1.01992821,2033.4,2032.6,0.001]
[1770640366660,1.22952835,2033.3,2032.6,0.001]
[1770640367058,2.44965258,2033.3,2032.6,0.001]
[1770640367881,1.22012423,2033.2,2032.6,0.001]
[1770640368468,1.22952835,2033.3,2032.6,0.001]
[1770640369778,1.22952835,2033.3,2032.7,1.35417732]
[1770640370376,4.18838592,2033.4,2032.7,1.35417732]
[1770640370673,4.93139337,2033.7,2032.7,1.35417732]
[1770640371604,1.22012423,2033.6,2032.6,0.001]
[1770640372097,1.22012423,2033.6,2032.6,1.28165512]
[1770640373410,0.01422514,2033.5,2032.6,1.28165512]
[1770640373699,1.22940742,2033.5,2032.6,1.28165512]
[1770640374906,1.22940742,2033.5,2032.6,2.51160101]
[1770640375681,1.22940742,2033.5,2032.7,1.35417732]
[1770640376809,4.91725375,2033.7,2032.7,1.35417732]
[1770640379013,4.91725375,2033.7,2032.9,1.28065512]
[1770640380178,0.002,2033.5,2032.9,1.28065512]
[1770640380406,1.22212423,2033.5,2032.8,0.001]
[1770640380625,1.23434937,2033.4,2032.6,0.001]
[1770640381109,1.22012423,2033.2,2032.6,0.001]
[1770640383008,1.2296493,2033.1,2032.6,0.001]
[1770640383181,2.44977353,2033.1,2032.6,0.001]
[1770640384511,1.22012423,2033.0,2032.6,0.001]
[1770640385802,1.22977027,2032.9,2032.6,0.001]
[1770640389810,4.91908111,2033.0,2032.6,0.001]
[1770640392102,1.22970978,2033.2,2032.6,0.001]
[1770640392414,0.01422514,2033.1,2032.6,0.001]
[1770640393325,0.002,2032.8,2032.6,0.001]
[1770640398637,1.50964066,2032.8,2032.2,0.001]
[1770640400147,1.24597775,2033.0,2032.3,0.0735222]
[1770640400438,4.91877898,2033.1,2032.4,1.47873498]
[1770640400636,1.22975261,2033.0,2032.4,1.47873498]
[1770640401529,1.50764066,2032.9,2032.2,0.001]
[1770640402356,2.73747143,2032.8,2032.2,0.001]
[1770640402956,1.22983077,2032.8,2032.2,0.001]
[1770640404951,6.42696376,2032.9,2032.2,0.001]
[1770640406256,6.42696376,2032.9,2032.4,0.001]
[1770640406455,0.002,2032.8,2032.4,0.001]
[1770640407339,4.9193231,2032.9,2032.4,0.001]
[1770640407340,1.50764066,2033.2,2032.4,0.001]
[1770640409859,2.73728996,2033.1,2032.4,0.001]
[1770640410174,3.437,2033.0,2032.4,0.001]
[1770640412237,1.22977027,2032.9,2032.4,0.001]
[1770640413556,2.73741093,2032.9,2032.4,0.001]
[1770640415665,1.22977027,2032.9,2032.4,0.001]
[1770640418571,0.002,2032.8,2032.4,0.001]
[1770640419067,0.002,2032.8,2032.4,1.47973498]
[1770640421471,0.002,2032.8,2032.4,0.001]
[1770640422976,1.22989127,2032.7,2032.4,0.001]
[1770640423353,8.72590381,2032.6,2032.2,1.47973498]
[1770640423753,8.72590381,2032.6,2032.2,0.001]
[1770640425073,1.2300123,2032.5,2032.2,0.001]
[1770640428650,1.22989127,2032.7,2032.2,0.001]
[1770640429080,2.74245284,2032.7,2032.2,0.001]
[1770640429385,8.72590381,2032.4,2031.8,0.001]
[1770640429583,10.23846538,2032.4,2031.8,0.001]
[1770640430663,1.23013334,2032.3,2032.2,0.001]
[1770640430856,1.23013334,2032.3,2031.8,0.001]
[1770640431788,1.23013334,2032.3,2031.8,1.66462937]
[1770640432160,8.72590381,2032.2,2031.8,0.001]
[1770640432661,1.23025441,2032.1,2031.8,0.001]
[1770640434986,4.92101766,2032.2,2031.8,0.001]
[1770640437301,1.51256157,2032.5,2031.8,1.66462937]
[1770640437512,8.35702256,2032.6,2031.8,1.66462937]
[1770640437801,8.35702256,2032.6,2032.0,1.66362937]
[1770640437802,1.2300123,2032.5,2032.0,1.66362937]
[1770640440201,6.43258413,2032.6,2032.0,1.66362937]
[1770640440374,1.51256157,2032.5,2031.8,1.66462937]
[1770640442289,1.23007282,2032.4,2031.8,1.66462937]
[1770640442592,1.22989127,2032.7,2032.0,1.66462937]
[1770640442776,1.22989127,2032.7,2032.1,1.66362937]
[1770640443089,0.002,2032.5,2032.1,1.66362937]
[1770640445568,0.002,2032.5,2032.0,0.001]
[1770640446096,0.002,2032.5,2032.0,1.66462937]
[1770640449316,1.51456157,2032.5,2032.0,0.001]
[1770640449481,1.23007282,2032.4,2032.0,0.001]
[1770640449970,2.74263439,2032.4,2032.0,0.001]
[1770640452695,1.23007282,2032.4,2032.0,0.001]
[1770640453170,1.51256157,2032.3,2031.6,3.437]
[1770640453571,1.51256157,2032.3,2031.3,0.001]
[1770640453773,4.66707282,2032.4,2031.3,0.001]
[1770640453774,1.51256157,2032.0,2031.3,0.001]
[1770640454278,2.74293708,2031.9,2031.3,0.001]
[1770640454869,1.51256157,2031.8,2031.3,0.001]
[1770640455174,1.23037551,2031.9,2031.3,1.66462937]
[1770640455696,1.23037551,2031.9,2031.5,0.001]
[1770640456579,1.23025441,2032.1,2031.5,0.001]
[1770640456790,2.90603042,2032.1,2031.5,0.001]
[1770640457090,10.40887531,2032.0,2031.5,0.001]
[1770640457286,8.7330993,2032.0,2031.5,0.001]
[1770640457493,1.67577601,2031.9,2031.5,0.001]
[1770640459490,1.23043606,2031.8,2031.5,0.001]
[1770640459687,1.59594574,2032.5,2031.5,1.62983774]
[1770640459891,1.23019387,2032.2,2031.6,1.62883774]
[1770640460086,0.002,2032.3,2031.6,1.70235994]
[1770640463101,0.002,2032.3,2031.8,1.62883774]
[1770640463796,0.002,2032.3,2031.6,1.23053061]
[1770640463999,1.59594574,2032.3,2031.6,1.23053061]
[1770640465086,2.82613618,2032.3,2031.7,2.85931414]
[1770640465271,1.23219044,2032.3,2031.7,2.85931414]
[1770640465470,0.002,2032.3,2031.8,1.62883774]
[1770640467486,0.002,2032.3,2032.0,1.62883774]
[1770640468029,0.002,2032.1,2032.0,1.62883774]
[1770640468807,0.002,2032.1,2031.8,1.23039351]
[1770640469017,0.002,2032.1,2031.8,2.85923125]
[1770640469200,0.002,2032.1,2031.8,1.23039351]
[1770640469404,0.002,2032.1,2031.9,1.62883774]
[1770640470599,0.002,2032.1,2031.8,1.23039351]
[1770640470985,0.002,2032.1,2031.7,1.23145066]
[1770640471208,0.002,2032.1,2031.7,1.23149503]
[1770640474816,0.002,2032.1,2031.7,0.001]
[1770640476212,1.59594574,2032.1,2031.7,0.001]
[1770640476819,0.002,2032.1,2031.7,0.001]
[1770640477023,0.002,2032.3,2031.7,1.70335994]
[1770640477222,4.92215346,2032.5,2031.8,1.62883774]
[1770640477420,1.23203124,2032.5,2031.8,1.62883774]
[1770640478721,1.23186355,2032.8,2032.1,1.62883774]
[1770640479098,1.23183315,2032.8,2032.1,1.62883774]
[1770640479804,0.002,2033.0,2032.3,1.70235994]
[1770640479994,1.23171085,2033.0,2032.3,1.70235994]
[1770640480197,2.82565659,2033.0,2032.3,1.70235994]
[1770640480711,2.82565659,2033.0,2032.4,1.23007282]
[1770640481322,0.002,2033.0,2032.4,2.85891056]
[1770640481722,0.002,2032.8,2032.4,2.85891056]
[1770640482532,0.002,2032.8,2032.5,1.62883774]
[1770640482908,0.002,2032.8,2032.6,1.22995178]
[1770640483097,0.002,2033.0,2032.7,1.62883774]
[1770640483628,1.23149439,2033.4,2032.7,1.62883774]
[1770640483629,0.002,2033.4,2032.7,1.62883774]
[1770640484902,0.002,2033.4,2032.8,2.85866851]
[1770640485433,0.002,2033.4,2032.9,1.7011839]
[1770640487536,2.9969117,2033.6,2032.9,1.7011839]
[1770640487537,2.9009117,2033.6,2032.9,1.7011839]
[1770640487827,2.9009117,2033.6,2032.9,1.7747061]
[1770640488741,4.9192415,2033.7,2033.0,1.7011839]
[1770640488908,4.91868351,2033.9,2033.2,1.7747061]
[1770640488909,4.91691785,2033.8,2033.2,1.7747061]
[1770640489109,1.23122607,2033.9,2033.2,1.7747061]
[1770640489634,1.23122607,2033.9,2033.2,3.00428748]
[1770640490004,1.23122607,2033.9,2033.2,1.7747061]
[1770640490322,1.23122607,2033.9,2033.2,3.00429091]
[1770640490502,6.68418749,2034.0,2033.3,1.7011839]
[1770640490699,1.22922607,2033.9,2033.3,1.7011839]
[1770640490899,4.91666256,2034.0,2033.3,1.7011839]
[1770640491137,2.99656971,2034.1,2033.3,1.7011839]
[1770640492033,2.9473559,2034.1,2033.3,1.7011839]
[1770640492537,1.76752493,2034.0,2033.3,1.7011839]
[1770640493327,1.22916564,2033.9,2033.2,1.30306795]
[1770640493823,1.22916564,2033.9,2033.3,1.7011839]
[1770640494022,1.23116564,2033.9,2033.3,1.7011839]
[1770640494533,4.91666256,2034.0,2033.3,1.7011839]
[1770640494733,1.22916564,2033.9,2033.3,1.7011839]
[1770640495209,2.99669057,2033.9,2033.2,0.0735222]
[1770640495410,2.99669057,2033.9,2033.2,1.30310415]
[1770640495610,2.99669057,2033.9,2033.2,3.00428805]
[1770640495808,1.22916564,2033.9,2033.3,1.7011839]
[1770640497639,4.91666256,2034.0,2033.3,2.93070479]
[1770640498239,4.91666256,2034.0,2033.3,1.7011839]
[1770640498421,6.68418749,2034.0,2033.3,1.7011839]
[1770640498621,6.68418749,2034.0,2033.0,3.437]
[1770640498622,1.76752493,2033.9,2033.0,3.437]
[1770640498811,1.76752493,2033.7,2033.0,3.437]
[1770640499641,1.22934697,2033.6,2033.0,3.437]
[1770640500620,2.9968719,2033.6,2033.0,3.437]
[1770640500945,1.76752493,2033.9,2033.2,1.7747061]
[1770640501127,1.22922607,2033.8,2033.2,10.48701908]
[1770640501440,1.22922607,2033.8,2033.3,1.7011839]
[1770640501640,1.76752493,2034.0,2033.3,1.7011839]
[1770640501832,2.99663014,2034.0,2033.3,1.7011839]
[1770640503143,1.22910521,2034.0,2033.4,1.7011839]
[1770640503821,4.91821064,2034.1,2033.4,1.7011839]
[1770640504022,1.22901293,2034.2,2033.6,1.7747061]
[1770640504244,1.23096936,2034.3,2033.6,1.7747061]
[1770640504931,4.91559959,2034.4,2033.7,1.7011839]
[1770640505120,1.22896936,2034.3,2033.7,1.7011839]
[1770640505523,4.91559959,2034.4,2033.7,1.7011839]
[1770640505743,1.22896936,2034.3,2033.7,1.7011839]
[1770640505919,0.002,2034.5,2033.8,1.7011839]
[1770640505920,1.23080314,2034.5,2033.8,1.7011839]
[1770640506129,1.23080314,2034.5,2034.0,1.7011839]
[1770640506623,1.22880314,2034.5,2034.0,1.7011839]
[1770640506824,0.002,2034.1,2034.0,1.7011839]
[1770640508135,0.002,2034.1,2033.8,1.7011839]
[1770640508443,0.002,2034.1,2033.5,3.436]
[1770640508822,1.76952493,2034.1,2033.5,3.436]
[1770640509022,1.76952493,2034.1,2033.5,0.001]
[1770640510844,2.99663014,2034.0,2033.5,0.001]
[1770640511249,1.76752493,2033.9,2033.5,0.001]
[1770640511420,6.68382555,2034.2,2033.6,0.0735222]
[1770640511620,4.91642084,2034.1,2033.6,0.0735222]
[1770640511838,2.99656971,2034.2,2033.6,0.0735222]
[1770640512038,1.22904478,2034.2,2033.6,1.7747061]
[1770640512241,6.68299305,2034.4,2033.6,1.7747061]
[1770640512446,1.22892395,2034.3,2033.6,1.7747061]
[1770640513748,1.22892395,2034.3,2033.6,1.7011839]
[1770640515124,2.99644888,2034.3,2033.6,1.7011839]
[1770640516764,1.22892395,2034.3,2033.6,2.93052268]
[1770640517072,1.22892395,2034.3,2033.7,2.41480222]
[1770640517553,2.2410104,2034.6,2033.8,16.47624442]
[1770640517782,1.22880314,2034.5,2033.8,2.48832442]
[1770640518268,2.35702882,2034.4,2033.5,0.001]
[1770640518831,2.35702882,2034.2,2034.0,0.001]
[1770640519045,2.35702882,2034.2,2033.5,0.001]
[1770640519244,1.22892395,2034.3,2033.7,6.474753]
[1770640519454,1.22892395,2034.3,2033.8,0.001]
[1770640520859,4.91769581,2034.4,2033.8,0.001]
[1770640521559,4.91769581,2034.4,2033.8,2.41467125]
[1770640522541,4.91769581,2034.4,2033.9,3.435]
[1770640523559,0.002,2034.4,2033.9,3.435]
[1770640524562,0.002,2034.4,2033.9,3.5085222]
[1770640526558,0.002,2034.4,2033.9,5.92219345]
[1770640527865,7.27351673,2035.0,2034.2,2.48719345]
[1770640528162,1.23042522,2035.2,2034.5,2.48719345]
[1770640528333,0.002,2035.4,2034.7,25.48511925]
[1770640528531,0.002,2035.4,2034.9,3.64221519]
[1770640528753,0.002,2035.4,2035.0,2.41367125]
[1770640528959,0.002,2035.4,2035.2,2.41367125]
[1770640529160,0.002,2035.4,2035.3,3.434]
[1770640529360,9.66840529,2036.1,2035.4,2.48719345]
[1770640529361,1.22789783,2036.0,2035.4,2.48719345]
[1770640529562,1.22789783,2036.0,2035.2,2.41367125]
[1770640529869,1.22789783,2036.0,2035.3,3.434]
[1770640530541,1.22789783,2036.0,2035.4,0.0735222]
[1770640530741,2.35702882,2036.3,2035.4,0.0735222]
[1770640530956,2.35702882,2036.3,2035.4,2.48719345]
[1770640531346,2.35702882,2036.5,2035.6,2.41367125]
[1770640531546,1.22753608,2036.6,2035.8,0.0735222]
[1770640531768,2.35702882,2036.5,2035.8,3.434]
[1770640532145,2.35702882,2036.5,2035.6,2.41367125]
[1770640532346,1.22753608,2036.6,2035.7,5.92119345]
[1770640532545,0.002,2036.3,2035.8,2.41367125]
[1770640533368,1.10339222,2036.6,2036.0,0.0735222]
[1770640533957,7.26579084,2037.2,2036.4,0.0735222]
[1770640534267,4.90725291,2037.9,2037.2,0.25647651]
[1770640534490,1.22681322,2037.8,2037.2,0.25647651]
[1770640534992,4.90725291,2038.0,2037.3,0.0735222]
[1770640535149,1.22663264,2038.1,2037.6,0.0735222]
[1770640535477,4.90653059,2038.3,2037.6,0.0735222]
[1770640535841,2.35702882,2038.2,2037.2,0.25647651]
[1770640536581,2.35702882,2038.2,2037.3,0.0735222]
[1770640536959,1.35702882,2038.2,2037.3,0.0735222]
[1770640537357,1.22663264,2038.1,2037.3,0.0735222]
[1770640537684,1.22663264,2038.1,2037.2,0.25647651]
[1770640537685,2.35702882,2038.0,2037.2,0.25647651]
[1770640537861,2.35702882,2038.0,2036.6,0.25636608]
[1770640538058,2.35702882,2038.0,2036.6,3.68836608]
[1770640538380,2.35702882,2038.0,2037.0,0.0735222]
[1770640539059,2.35702882,2038.0,2036.9,0.0735222]
[1770640539371,1.22675303,2037.9,2036.9,0.0735222]
[1770640539555,2.35702882,2037.8,2036.9,0.0735222]
[1770640539756,2.35702882,2037.8,2036.9,1.30086852]
[1770640539981,1.22675303,2037.9,2037.0,2.757831]
[1770640540680,1.22675303,2037.9,2037.2,0.0735222]
[1770640541686,4.90701212,2038.0,2037.2,0.0735222]
[1770640542772,7.26404094,2038.0,2037.2,0.0735222]
[1770640542968,7.26404094,2038.0,2036.9,0.0735222]
[1770640542969,2.35702882,2037.9,2036.9,0.0735222]
[1770640543292,2.35702882,2037.9,2037.0,3.43]
[1770640543880,3.58384204,2037.8,2037.0,3.43]
[1770640544362,3.58384204,2037.8,2037.2,0.0745222]
[1770640544563,1.22681322,2037.8,2037.2,0.0745222]
[1770640545166,1.22681322,2037.8,2037.0,3.431]
[1770640546087,4.90725291,2037.9,2036.4,2.89085911]
[1770640546088,2.6536074,2037.9,2036.4,2.89085911]
[1770640546294,2.6536074,2037.5,2036.1,0.001]
[1770640546597,2.6536074,2037.5,2036.3,0.0735222]
[1770640546769,2.6536074,2037.5,2036.1,0.001]
[1770640548193,2.6536074,2037.3,2036.1,0.001]
[1770640548497,2.6536074,2037.3,2036.3,0.0735222]
[1770640548698,1.22875303,2038.0,2036.9,2.89085911]
[1770640548875,1.22675303,2037.9,2037.2,0.0735222]
[1770640549077,1.22675303,2037.9,2037.5,0.0735222]
[1770640550206,1.22675303,2037.9,2037.2,2.89085911]
[1770640550207,0.002,2038.0,2037.2,2.89085911]
[1770640550408,0.002,2038.0,2037.5,0.0735222]
[1770640555321,0.002,2038.0,2037.8,0.0735222]
[1770640555515,0.002,2038.0,2037.2,2.81733691]
[1770640555822,0.002,2038.0,2037.3,0.0735222]
[1770640557508,0.002,2038.0,2037.2,2.89085911]
[1770640557817,0.002,2038.0,2037.7,0.001]
[1770640558014,0.002,2037.8,2037.7,0.001]
[1770640558205,0.002,2037.8,2037.5,0.001]
[1770640559202,0.002,2037.8,2036.9,2.89085911]
[1770640562839,2.6556074,2037.8,2036.9,0.0735222]
[1770640564152,2.6536074,2037.6,2036.6,0.001]
[1770640565308,1.22687343,2037.7,2036.6,0.001]
[1770640565309,2.6536074,2037.4,2036.6,0.001]
[1770640566132,2.6536074,2037.2,2036.3,0.0735222]
[1770640566298,2.6536074,2037.2,2036.1,0.001]
[1770640567133,2.6536074,2037.2,2036.1,2.81833691]
[1770640567408,1.22711431,2037.3,2036.4,2.81733691]
[1770640568346,2.6536074,2037.3,2036.4,2.81733691]
[1770640569438,2.6536074,2037.3,2036.3,0.0735222]
[1770640569742,2.6536074,2037.3,2036.3,2.89085911]
[1770640570031,2.6536074,2037.3,2036.3,2.89185911]
[1770640570404,1.22717455,2037.2,2036.3,2.89185911]
[1770640571035,2.6536074,2037.1,2036.3,0.0745222]
[1770640572311,1.22729504,2037.0,2036.3,0.0745222]
[1770640576020,2.92255799,2036.9,2036.3,0.001]
[1770640576442,1.22729504,2037.0,2036.3,0.001]
[1770640576647,1.22729504,2037.0,2036.3,3.0047742]
[1770640577863,7.83173815,2037.1,2036.3,0.0745222]
[1770640578420,3.2465481,2037.0,2036.3,0.0745222]
[1770640580023,1.22735529,2036.9,2036.3,0.0745222]
[1770640581053,4.47390339,2036.9,2036.3,0.001]
[1770640581255,3.2465481,2036.8,2036.3,0.001]
[1770640582160,1.22747581,2036.7,2036.3,0.001]
[1770640584123,1.22747581,2036.7,2035.7,0.0735222]
[1770640584124,3.2465481,2036.7,2035.4,3.5718542]
[1770640584450,3.2465481,2036.5,2035.4,0.0735222]
[1770640586055,3.2465481,2036.5,2035.3,3.05386275]
[1770640586242,3.2465481,2036.3,2035.3,3.05386275]
[1770640586744,3.2465481,2036.3,2035.2,0.001]
[1770640587131,3.2465481,2036.2,2035.2,0.0745222]
[1770640588146,1.22783753,2036.1,2035.2,0.0745222]
[1770640588346,3.2465481,2036.0,2035.2,0.0745222]
[1770640588857,1.22783753,2036.1,2035.5,0.0735222]
[1770640590854,4.91135013,2036.2,2035.5,0.0735222]
[1770640593431,3.2465481,2036.6,2035.5,3.12738495]
[1770640593632,4.91038546,2036.7,2036.0,3.05386275]
[1770640594639,1.22747581,2036.8,2036.0,3.05386275]
[1770640595044,3.2465481,2036.7,2035.9,1.30145843]
[1770640595240,0.002,2036.6,2035.9,0.0735222]
[1770640597239,1.22953608,2036.6,2035.9,0.0735222]
[1770640597758,1.22953608,2036.6,2035.9,1.30147975]
[1770640597943,1.22953608,2036.6,2035.9,4.3553425]
[1770640598468,1.22953608,2036.6,2035.9,3.12738495]
[1770640598970,1.22953608,2036.6,2035.9,4.35533721]
[1770640599336,0.002,2036.6,2035.9,3.12738495]
[1770640600405,3.2485481,2036.6,2035.7,0.001]
[1770640600872,3.2485481,2036.6,2035.8,0.0735222]
[1770640601081,0.002,2036.6,2035.8,4.355381]
[1770640602649,0.002,2036.6,2035.9,3.05386275]
[1770640603692,3.2485481,2036.6,2035.8,0.0735222]
[1770640604044,3.2485481,2036.6,2035.7,0.001]
[1770640604252,3.2465481,2036.5,2035.7,0.001]
[1770640605549,1.22765664,2036.4,2035.7,0.001]
[1770640605752,4.59095407,2036.4,2035.7,0.001]
[1770640606558,3.36329743,2036.3,2035.7,0.001]
[1770640607183,3.36329743,2036.3,2035.5,0.001]
[1770640607783,3.36329743,2036.1,2035.5,0.001]
[1770640608264,3.36329743,2036.1,2035.8,0.001]
[1770640608453,3.36329743,2036.1,2035.2,0.001]
[1770640609283,3.36329743,2035.9,2034.7,0.001]
[1770640609481,3.36329743,2035.9,2034.7,3.30926456]
[1770640609856,3.36329743,2035.7,2034.7,3.38278676]
[1770640610980,3.36329743,2035.7,2034.7,0.001]
[1770640611481,3.36329743,2035.7,2034.6,0.001]
[1770640612186,3.36329743,2035.5,2034.1,3.30826456]
[1770640612365,3.36329743,2035.3,2034.0,0.001]
[1770640613977,3.36329743,2034.9,2033.8,0.001]
[1770640614177,1.22874275,2034.6,2033.8,0.001]
[1770640614491,1.22874275,2034.6,2033.8,3.30926456]
[1770640615164,1.22874275,2034.6,2033.8,0.001]
[1770640617271,1.22874275,2034.6,2034.0,0.0735222]
[1770640617595,1.22872822,2034.7,2034.0,0.0735222]
[1770640617888,1.22872822,2034.7,2034.0,3.38178676]
[1770640619268,1.22872822,2034.7,2034.1,1.22904478]
[1770640619472,1.22872822,2034.7,2034.0,4.61085058]
[1770640621394,1.2283805,2035.2,2034.3,3.38178676]
[1770640622093,3.36329743,2035.1,2034.2,0.001]
[1770640622267,4.59167793,2035.2,2034.2,3.30926456]
[1770640622467,4.59167793,2035.2,2034.2,0.001]
[1770640622468,3.36329743,2035.1,2034.2,0.001]
[1770640623074,3.36329743,2035.1,2034.0,0.001]
[1770640623495,3.36329743,2034.9,2034.0,0.001]
[1770640623795,3.36329743,2034.8,2033.8,0.001]
[1770640623996,3.36329743,2034.6,2033.8,0.001]
[1770640626098,3.36329743,2034.4,2033.8,0.001]
[1770640628192,1.22892395,2034.3,2033.8,0.001]
[1770640629004,1.22882487,2034.5,2033.8,0.001]
[1770640629182,1.228782,2034.6,2033.9,3.38178676]
[1770640629568,1.22871191,2034.7,2033.9,3.38178676]
[1770640630171,1.2285616,2034.9,2034.0,1.22910521]
[1770640630372,1.2285616,2034.9,2034.0,4.53736977]
[1770640630592,1.2285616,2034.9,2034.1,3.30826456]
[1770640632273,4.9142464,2035.0,2034.1,4.53726345]
[1770640632474,4.9142464,2035.0,2034.2,3.38178676]
[1770640633295,1.22850122,2035.0,2034.2,3.38178676]
[1770640634200,4.91400491,2035.2,2034.3,1.22892395]
[1770640634405,3.36329743,2035.1,2034.0,1.22906464]
[1770640635420,3.36329743,2035.1,2034.1,1.22904297]
[1770640635720,0.002,2034.9,2034.1,1.22904297]
[1770640635876,3.86042075,2034.9,2034.1,1.22904297]
[1770640636505,1.22862197,2034.8,2034.0,1.23010521]
[1770640637583,1.23059881,2034.9,2034.2,0.0735222]
[1770640638596,3.54907541,2034.9,2034.0,1.23005312]
[1770640639196,3.54907541,2034.9,2034.0,1.23007137]
[1770640639908,3.54907541,2034.9,2034.0,1.23009924]
[1770640640229,3.54907541,2034.9,2033.8,0.001]
[1770640640378,3.54707541,2034.7,2033.8,0.001]
[1770640640582,3.54707541,2034.3,2033.8,0.001]
[1770640643611,1.22898436,2034.2,2033.8,0.001]
[1770640645812,1.22886354,2034.4,2033.8,0.001]
[1770640647137,4.77593895,2034.4,2033.8,0.001]
[1770640648335,4.77593895,2034.4,2034.0,0.001]
[1770640648625,0.002,2034.1,2034.0,0.001]
[1770640655027,0.002,2034.1,2034.0,3.64152856]
[1770640655427,0.002,2034.3,2034.0,3.64152856]
[1770640657147,0.002,2034.3,2034.0,0.001]
[1770640658844,0.002,2034.9,2034.3,0.0735222]
[1770640659021,0.002,2034.9,2034.5,1.22880314]
[1770640659915,0.002,2034.9,2034.4,4.66285995]
[1770640660220,0.002,2034.9,2034.4,8.30338851]
[1770640660616,0.002,2034.9,2034.5,3.64052856]
[1770640661410,0.002,2034.9,2034.4,3.434]
[1770640661649,0.002,2034.7,2034.4,4.66285734]
[1770640662035,0.002,2034.7,2034.5,1.22879939]
[1770640662842,0.002,2034.7,2034.5,4.86932795]
[1770640663443,0.002,2034.9,2034.5,4.86932795]
[1770640664343,0.002,2034.9,2034.5,1.22879939]
[1770640664846,0.002,2034.9,2034.5,1.22879964]
[1770640665246,0.002,2034.9,2034.5,1.2287992]
[1770640668556,0.002,2034.9,2034.6,3.85037286]
[1770640668915,0.002,2034.9,2034.6,0.0735222]
[1770640670552,0.002,2034.9,2034.7,1.22868236]
[1770640670753,0.002,2034.9,2034.8,3.433]
[1770640671819,3.96441771,2034.9,2034.4,1.22883771]
[1770640672025,3.96441771,2034.9,2034.1,1.22899846]